Cogmind - Beta 14 @@@ ROGUE MODE // 2024.09.28 @ 16:43:47 Player: BionicBot Result: Self-destructed Performance ------------- Evolutions (4) 2000 Regions Visited (6) 1200 Robots Destroyed (0) 0 Value Destroyed (0) 0 Prototype IDs (1) 20 Alien Tech Used (0) 0 Bonus (1325) 1325 TOTAL SCORE: 4545 Bonus ------- Pacifist 1325 Cogmind --------- Core Integrity 845/850 Matter 280/300 Energy 100/100 System Corruption 0% Temperature Cool (0) Movement Flying (37) Location -6/Lower Caves Parts ------- > --- POWER (1) -------- (None) > --- PROPULSION (6) --- Improved Flight Unit Xenon Bombardment Thruster > --- UTILITY (6) ------ (None) > --- WEAPON (2) ------- Flail > --- INVENTORY (5) ---- (None) Peak State ------------ > --- POWER ------------ (None) > --- PROPULSION ------- Improved Flight Unit Xenon Bombardment Thruster > --- UTILITY ---------- (None) > --- WEAPON ----------- Flail > --- INVENTORY -------- (None) [Rating: 9] Favorites ----------- Power None Propulsion Light Treads Treads Light Treads Flight Unit Improved Flight Unit Utility None Weapon Flail Impact Weapon Flail Build | -11 -10 -9 -8 -7 -6 -6 ------- Run | Yrd Mat Mat Mat Fac Fac Low Slots Evolved 8 | . . 2 2 2 2 . Power . | . . . . . . . Propulsion 4 | . . 2 . . 2 . Utility 4 | . . . 2 2 . . Weapon . | . . . . . . . Parts Attached 5 | 2 . . 1 2 . . Power . | . . . . . . . Engine . | . . . . . . . Core . | . . . . . . . Reactor . | . . . . . . . Propulsion 4 | 2 . . 1 1 . . Treads 2 | 2 . . . . . . Leg . | . . . . . . . Wheel . | . . . . . . . Hover . | . . . . . . . Flight 2 | . . . 1 1 . . Utility . | . . . . . . . Device . | . . . . . . . Storage . | . . . . . . . Processor . | . . . . . . . Hackware . | . . . . . . . Protection . | . . . . . . . Artifact . | . . . . . . . Weapon 1 | . . . . 1 . . Energy Gun . | . . . . . . . Energy Cannon . | . . . . . . . Ballistic Gun . | . . . . . . . Ballistic Cannon . | . . . . . . . Launcher . | . . . . . . . Special Weapon . | . . . . . . . Impact Weapon 1 | . . . . 1 . . Slashing Weapon . | . . . . . . . Piercing Weapon . | . . . . . . . Special Melee Weapon . | . . . . . . . Unidentified Prototypes 1 | . . . 1 . . . Parts Lost 2 | . . 2 . . . . Power . | . . . . . . . Propulsion 2 | . . 2 . . . . Utility . | . . . . . . . Weapon . | . . . . . . . Highest Loss Streak 2 | . . 2 . . . . To Critical Strikes . | . . . . . . . Average Slot Usage (%) 18 | . 28 18 6 17 20 . Treads 8 | . 28 18 . . . . Flight 6 | . . . 6 11 13 . Impact Weapon 2 | . . . . 5 6 . Peak Build Rating 9 | 2 2 2 3 9 9 . Average Rating 4 | 1 2 1 2 6 9 . On Entrance 3 | . 2 2 . 3 9 9 Naked Turns 33 | . . 20 13 . . . Heaviest Build 2 | . . . . 2 2 . Greatest Support 11 | 3 3 3 5 11 11 . Greatest Overweight (x) . | . . . . . . . Average Overweight (x) . | . . . . . . . Largest Inventory Capacity 5 | 5 5 5 5 5 5 . Average Capacity 5 | 5 5 5 5 5 5 . Most Carried 1 | . . 1 1 1 . . Average Carried . | . . . 1 . . . Final Capacity 5 | 5 5 5 5 5 5 5 Final Carried 1 | . . 1 1 . . . Class Distribution -------------------- 100% | Mutant Dominant Class ---------------- Mutant | -10/Materials Mutant | -9/Materials Mutant | -8/Materials Mutant | -7/Factory Mutant | -6/Factory Mutant | -6/Lower Caves Resources | -11 -10 -9 -8 -7 -6 -6 ----------- Run | Yrd Mat Mat Mat Fac Fac Low Matter Collected 220 | 129 . . 91 . . . Remotely . | . . . . . . . Salvage Created . | . . . . . . . Parts . | . . . . . . . Haulers Intercepted . | . . . . . . . Recyclers Shooed . | . . . . . . . Parts Field Recycled . | . . . . . . . Retrieved Matter . | . . . . . . . Parts Self-Destructed . | . . . . . . . Prevented . | . . . . . . . Kills | -11 -10 -9 -8 -7 -6 -6 ------- Run | Yrd Mat Mat Mat Fac Fac Low Combat Hostiles Destroyed . | . . . . . . . Classes Destroyed . | . . . . . . . Best Kill Streak . | . . . . . . . Combat Bots Only . | . . . . . . . Max Kills in Single Turn . | . . . . . . . Gunslinging . | . . . . . . . Exploded . | . . . . . . . Melee . | . . . . . . . Uniques/NPCs Destroyed . | . . . . . . . Combat | -11 -10 -9 -8 -7 -6 -6 -------- Run | Yrd Mat Mat Mat Fac Fac Low Hostile Shots Fired 136 | . 4 86 17 20 9 . Missed 67 | . 2 36 11 12 6 . Damage Taken 751 | . 30 534 49 117 21 . Core 385 | . 12 255 41 72 5 . Absorbed by Shields . | . . . . . . . Core Remaining (%) 82 | 100 95 36 92 89 . . Volleys Fired . | . . . . . . . Largest . | . . . . . . . Hottest . | . . . . . . . Shots Fired . | . . . . . . . Gun . | . . . . . . . Cannon . | . . . . . . . Launcher . | . . . . . . . Special . | . . . . . . . Kinetic . | . . . . . . . Thermal . | . . . . . . . Explosive . | . . . . . . . Electromagnetic . | . . . . . . . Robot Hit Streak . | . . . . . . . Robot Miss Streak . | . . . . . . . Penetration Max . | . . . . . . . Secondary Targets . | . . . . . . . Shots Hit Robots . | . . . . . . . Core Hits . | . . . . . . . Critical Kills . | . . . . . . . Critical Parts Destroyed . | . . . . . . . Critical Strikes . | . . . . . . . Melee Attacks 3 | . . . . 3 . . Impact 3 | . . . . 3 . . Slashing . | . . . . . . . Piercing . | . . . . . . . Sneak Attacks . | . . . . . . . Combat Hostiles . | . . . . . . . Follow-up Attacks . | . . . . . . . Damage Inflicted . | . . . . . . . Guns . | . . . . . . . Cannons . | . . . . . . . Explosions . | . . . . . . . Melee . | . . . . . . . Ramming . | . . . . . . . Kinetic . | . . . . . . . Thermal . | . . . . . . . Explosive . | . . . . . . . Electromagnetic . | . . . . . . . Impact . | . . . . . . . Slashing . | . . . . . . . Piercing . | . . . . . . . Highest Corruption . | . . . . . . . Average Corruption . | . . . . . . . Corruption Purged . | . . . . . . . Corruption Blocked . | . . . . . . . Overload Shots . | . . . . . . . Overflow Damage . | . . . . . . . Projectiles . | . . . . . . . Explosions . | . . . . . . . Melee . | . . . . . . . Knockbacks . | . . . . . . . Impact . | . . . . . . . Kinetic . | . . . . . . . Secondary . | . . . . . . . Self-Inflicted Damage . | . . . . . . . Shots . | . . . . . . . Rammed . | . . . . . . . Targets Rammed . | . . . . . . . Kicked . | . . . . . . . Crushed . | . . . . . . . Highest Temperature . | . . . . . . . Average Temperature . | . . . . . . . Received Heat Transfer 213 | . 15 138 . 54 6 . Siege Activations . | . . . . . . . Robots Corrupted . | . . . . . . . Combat Hostiles . | . . . . . . . Parts Fried . | . . . . . . . Impact Corruptions . | . . . . . . . Robots Melted . | . . . . . . . Combat Hostiles . | . . . . . . . Parts Melted . | . . . . . . . Heat Transferred . | . . . . . . . Parts Sabotaged . | . . . . . . . Parts Stolen . | . . . . . . . Parts Stripped . | . . . . . . . Power Chain Reactions . | . . . . . . . Alert | -11 -10 -9 -8 -7 -6 -6 ------- Run | Yrd Mat Mat Mat Fac Fac Low Peak Influence 186 | . 15 105 44 186 106 . Initial 91 | . . 5 44 19 91 . Average 42 | . . 25 44 53 93 . Maximum Alert Level . | . . . . . . . Low Security (%) 100 | 100 100 100 100 100 100 . Level 1 . | . . . . . . . Level 2 . | . . . . . . . Level 3 . | . . . . . . . Level 4 . | . . . . . . . Level 5 . | . . . . . . . High Security . | . . . . . . . Max Security . | . . . . . . . Squads Dispatched 2 | . . 1 . 1 . . Investigation . | . . . . . . . Extermination . | . . . . . . . Reinforcement 2 | . . 1 . 1 . . Assault . | . . . . . . . Garrison . | . . . . . . . Intercept . | . . . . . . . Searches Triggered . | . . . . . . . Construction Impeded . | . . . . . . . Haulers Reinforced . | . . . . . . . Active Scanning Responses . | . . . . . . . Cargo Convoy Interrupts . | . . . . . . . Stealth | -11 -10 -9 -8 -7 -6 -6 --------- Run | Yrd Mat Mat Mat Fac Fac Low Distress Signals 3 | . 1 1 . 1 . . Communications Jammed . | . . . . . . . Distress Signals . | . . . . . . . Times Spotted 54 | . 5 24 5 18 2 . Peak Tracking Total 21 | . 5 21 5 11 2 . Tactical Retreats 3 | . . 1 . 2 . . Traps | -11 -10 -9 -8 -7 -6 -6 ------- Run | Yrd Mat Mat Mat Fac Fac Low Traps Triggered . | . . . . . . . Indirectly . | . . . . . . . Trap Hack Attempts . | . . . . . . . Triggered . | . . . . . . . Disarmed . | . . . . . . . Reprogrammed . | . . . . . . . Reused . | . . . . . . . Traps Extracted . | . . . . . . . Installed . | . . . . . . . Triggered . | . . . . . . . Machines | -11 -10 -9 -8 -7 -6 -6 ---------- Run | Yrd Mat Mat Mat Fac Fac Low Machines Disabled . | . . . . . . . Max in Single Turn . | . . . . . . . Machines Repaired . | . . . . . . . Machines Dismantled . | . . . . . . . Machines Sabotaged . | . . . . . . . Overloaded Fab Kills . | . . . . . . . Hacking | -11 -10 -9 -8 -7 -6 -6 --------- Run | Yrd Mat Mat Mat Fac Fac Low Machines Accessed 2 | . . . . 1 1 . Terminals 2 | . . . . 1 1 . Fabricators . | . . . . . . . Repair Stations . | . . . . . . . Recycling Units . | . . . . . . . Scanalyzers . | . . . . . . . Garrison Access . | . . . . . . . Total Hacks 4 | . . . . 2 2 . Successful . | . . . . . . . Failed 4 | . . . . 2 2 . Catastrophic 1 | . . . . 1 . . Database Lockouts . | . . . . . . . Manual . | . . . . . . . Terminals 4 | . . . . 2 2 . Fabricators . | . . . . . . . Repair Stations . | . . . . . . . Recycling Units . | . . . . . . . Scanalyzers . | . . . . . . . Garrison Access . | . . . . . . . Terminal Hacks . | . . . . . . . Fabricator Hacks . | . . . . . . . Repair Station Hacks . | . . . . . . . Recycling Unit Hacks . | . . . . . . . Scanalyzer . | . . . . . . . Garrison Access Hacks . | . . . . . . . Unauthorized Hacks . | . . . . . . . Terminals . | . . . . . . . Fabricators . | . . . . . . . Repair Stations . | . . . . . . . Recycling Units . | . . . . . . . Scanalyzers . | . . . . . . . Garrison Access . | . . . . . . . Data Cores Recovered . | . . . . . . . Used . | . . . . . . . Hacking Detections 2 | . . . . 1 1 . Full Trace Events . | . . . . . . . Feedback Events . | . . . . . . . Feedback Blocked . | . . . . . . . Robot Schematics Acquired . | . . . . . . . Robots Built . | . . . . . . . Authchips . | . . . . . . . Time . | . . . . . . . Total Robot Build Rating . | . . . . . . . Part Schematics Acquired . | . . . . . . . Parts Built . | . . . . . . . Authchips . | . . . . . . . Time . | . . . . . . . Total Part Build Rating . | . . . . . . . Parts Repaired . | . . . . . . . Time . | . . . . . . . Parts Recycled . | . . . . . . . Recycled Matter . | . . . . . . . Retrieved Matter . | . . . . . . . Retrieved Components . | . . . . . . . Parts Scanalyzed . | . . . . . . . Part Schematics Acquired . | . . . . . . . Parts Damaged . | . . . . . . . Bothacking | -11 -10 -9 -8 -7 -6 -6 ------------ Run | Yrd Mat Mat Mat Fac Fac Low Used RIF Installer . | . . . . . . . Robots Hacked . | . . . . . . . Non-combat . | . . . . . . . Combat . | . . . . . . . Robot Hacks Applied . | . . . . . . . Relay Couplers Released . | . . . . . . . Fabnet Peak Effective % . | . . . . . . . Robots Rewired . | . . . . . . . Allies Hacked . | . . . . . . . Hacks Repelled . | . . . . . . . Allies | -11 -10 -9 -8 -7 -6 -6 -------- Run | Yrd Mat Mat Mat Fac Fac Low Total Allies . | . . . . . . . Largest Group . | . . . . . . . Highest-Rated Group . | . . . . . . . Highest-Rated Ally . | . . . . . . . Total Orders . | . . . . . . . Ally Attacks . | . . . . . . . Total Damage . | . . . . . . . Kills . | . . . . . . . Allies Corrupted . | . . . . . . . Allies Melted . | . . . . . . . Intel | -11 -10 -9 -8 -7 -6 -6 ------- Run | Yrd Mat Mat Mat Fac Fac Low Robot Analysis Total . | . . . . . . . Derelict Logs Recovered . | . . . . . . . Drone Launches . | . . . . . . . Drone Recoveries . | . . . . . . . Exploration | -11 -10 -9 -8 -7 -6 -6 ------------- Run | Yrd Mat Mat Mat Fac Fac Low Turns Passed 422 | 16 36 132 39 147 52 . Spaces Moved 930 | 19 70 261 87 357 136 . Core 375 | 19 70 261 25 . . . Treads . | . . . . . . . Legs . | . . . . . . . Wheels . | . . . . . . . Hover . | . . . . . . . Flight 555 | . . . 62 357 136 . Fastest Speed 37 | 50 50 50 40 37 37 . Average Speed 42 | 50 50 50 42 38 37 . Slowest Speed 50 | 50 50 50 50 40 37 . Overloaded Moves . | . . . . . . . Propulsion Burnouts . | . . . . . . . Robots Hopped 4 | . . . . 1 3 . Cave-ins Triggered . | . . . . . . . Exploration Rate (%) 12 | 3 14 38 12 14 7 2 Regions Visited 6 Branch Regions 1 Pre-discovered Areas . | . . . . . . . Known Exits Taken . | . . . . . . . Unknown Exits Taken 6 | 1 1 1 1 1 1 . Scrap Searched . | . . . . . . . Spaces Dug 2 | . . . . 2 . . Terrain Destroyed 2 | . . . . 2 . . Melee 2 | . . . . 2 . . Projectile . | . . . . . . . AOE . | . . . . . . . Terrain Rammed . | . . . . . . . Walls Destroyed . | . . . . . . . Machines Disabled . | . . . . . . . Actions | -11 -10 -9 -8 -7 -6 -6 --------- Run | Yrd Mat Mat Mat Fac Fac Low Total 935 | 23 70 261 87 360 134 . Wait 6 | 3 1 . . . 2 . Move 917 | 18 69 260 86 354 130 . Hop 3 | . . . . 1 2 . Pick Up 1 | . . 1 . . . . Fast Attach 4 | 2 . . 1 1 . . Attach 1 | . . . . 1 . . Detach . | . . . . . . . Swap . | . . . . . . . Drop . | . . . . . . . Fire . | . . . . . . . Melee 3 | . . . . 3 . . Ram . | . . . . . . . Kick . | . . . . . . . Crush . | . . . . . . . Escape Stasis . | . . . . . . . Rewire . | . . . . . . . Trap . | . . . . . . . Miscellaneous . | . . . . . . . Route ------- -11/Scrapyard -10/Materials -9/Materials (discovered 2 exits: [*Mat] / [*Min]) -8/Materials -7/Factory -6/Factory -6/Lower Caves History --------- Turn | Location | Event 5 | -11/Scrapyard | Discovered new exit (range 15) 17 | -11/Scrapyard | Entered Materials 49 | -10/Materials | Discovered new exit (range 10) 53 | -10/Materials | Entered another Materials area 53 | -9/Materials | Evolved 2 slots: Propulsion x2 66 | -9/Materials | Discovered new exit (range 16) 175 | -9/Materials | Core integrity fell below 50% 177 | -9/Materials | Discovered new exit (range 15) 185 | -9/Materials | Entered another Materials area 185 | -8/Materials | Evolved 2 slots: Utility x2 218 | -8/Materials | Discovered new exit (range 15) 224 | -8/Materials | Entered Factory 224 | -7/Factory | Evolved 2 slots: Utility x2 317 | -7/Factory | Build established: Mutant 370 | -7/Factory | Discovered new exit (range 5) 371 | -7/Factory | Entered another Factory area 371 | -6/Factory | Evolved 2 slots: Propulsion x2 416 | -6/Factory | Discovered new exit (range 14) 423 | -6/Factory | Entered Lower Caves 423 | -6/Lower Caves | Self-destructed Last Messages --------------- 00237_ Current location identified: Factory 00248_ ALERT: All DSF locations entering lockdown mode. 00264_ K-01 Serf collects debris. 00276_ Connecting with Terminal... 00296_ Acquired Xenon Bombardment Thruster. 00348_ O-24 Administrator: "IFF HANDSHAKE FAILED. SECURING TERMINAL." 00350_ ALERT: Hostiles spotted, dispatching reinforcements to Terminal F017. 00354_ W-25 Informer sends out distress signal. 00367_ K-01 Serf collects debris. 00370_ EXIT=FOUND PARAMETERS=PROPULSION+2 LOCATION=UNKNOWN GOAL=ESCAPE 00375_ ALERT: All DSF locations entering lockdown mode. 00411_ Connecting with DSF Access... 00411_ Current location identified: Factory 00416_ EXIT=FOUND LOCATION=UNKNOWN GOAL=ESCAPE Map ----- +----------------------------------------------------+ | ?????????????????????????????????????????????? | | ?????????????????????????????????????????????? | | ?????????????????????????????????????????????? | | ?????????????????????????????????????????????? | | ?????????????????????????????????????????????? | | ?????????????????????????????????????????????? | | ?????????????????????????????????????????????? | | ?????????????????????????????????????????????? | | ?????????????????????????????????????????????? | | ?????????????????????????????????????????????? | | ?????????????????????????????????????????????? | | ?????????????????????????????????????????????? | | ?????????????????? ??????????????????????????? | | ?????????????????? ?????????????????????????? | | ??????????????????? ?????????????????????????? | | ??????????????????? ????????????????????????? | | ???????????????????? ????????????????????????? | | ???????????????????? ???????????????????????? | | ????????????????????? ???????#???????????????? | | ?????????????????????# ????? #???????????????? | | ?????????????????????# ????? #???????????????? | | ?????????????????????# ??? #???????????????? | | ????????????????????## ### #???????????????? | | ????????????????????# #???????????????? | | ?????????????????##### #???????????????? | | ??????????# s @ #???????????????? | | ???????????# s #### #??????????????? | | ????????????????????# ##??????????????? | | ??????????????????? #???????????????? | | ????????????????? #???????????????? | | ???????????????# #### #???????????????? | | ??????????????#k #???## #???????????????? | | ??????????????######??????# ##???????????????? | | ???????????????????????????##????????????????? | | ?????????????????????????????????????????????? | | ?????????????????????????????????????????????? | | ?????????????????????????????????????????????? | | ?????????????????????????????????????????????? | | ?????????????????????????????????????????????? | | ?????????????????????????????????????????????? | | ?????????????????????????????????????????????? | | ?????????????????????????????????????????????? | | ?????????????????????????????????????????????? | | ?????????????????????????????????????????????? | | ?????????????????????????????????????????????? | | ?????????????????????????????????????????????? | | ?????????????????????????????????????????????? | | ?????????????????????????????????????????????? | | ?????????????????????????????????????????????? | | | +----------------------------------------------------+ Best States ------------- Heat Dissipation 37 Energy Generation 5 Energy Capacity 100 Matter Stores 300 Matter Capacity 300 Sight Range 16 Terrain Scan Density 10 Evasion (%) 62 Item Schematics ----------------- None Robot Schematics ------------------ None Fabricated ------------ Nothing Alien Tech Used ----------------- None Achievements -------------- None Challenges ------------ None Game ------ Seed AerolevEfficiencyCharger Manual? 0 Play Time 00:06:42 Cumulative 174.0 hours Start 2024.09.28 @ 16:37:12 End 2024.09.28 @ 16:43:47 Sessions 1 Manual Loads 0 Difficulty Rogue Special Mode None Game No. 134 Rogue 134 Adventurer 0 Explorer 0 Win Type - Total 8 Types 7/0/1/0/0/0/0/0/0 Lore% 44 Gallery% 58 Achievement% 56 Wizard Run 0 Options --------- Layout 0 ASCII 0 Keyboard 1 Movement Numpad Keybinds 0 Fullscreen 2 Font 18/X11 Map View 76x50 Zoom Use 0% Tactical HUD 1 Map Filters NONE Filters NONE Steam 1 RUN: b645b9fe-1358-4320-a25a-db3b9d4314d4